[Event "Ostravsky Konik FIDE-A 2024"]
[Site "Ostrava"]
[Date "2024.04.28"]
[Round "2.6"]
[White "Kubik, Rafal"]
[Black "Bujnoch, Radek"]
[Result "0-1"]
[ECO "C54"]
[WhiteElo "2074"]
[BlackElo "2307"]
[Annotator "TA"]
[PlyCount "112"]
[EventDate "2024.04.26"]
[EventType "swiss"]
[EventCountry "CZE"]
[SourceTitle "playchess.com"]
[Source "ChessBase"]
[SourceQuality "1"]
[TimeControl "40/5400+30:1800+30"]

{[%evp 15,112,20,25,7,11,4,5,10,13,17,5,0,16,17,14,20,20,20,18,13,16,17,14,0,0,0,31,-9,-13,-15,0,0,0,-34,0,-22,-25,-15,-10,-18,0,0,0,0,0,-8,0,-18,0,0,0,0,0,0,0,0,0,-3,0,0,0,0,8,8,8,8,8,8,8,8,8,8,8,-12791,-6095,-5214,-4133,-29976,-29977,-29982,-29983,-29984,-29985,-29985,-29986,-29986,-29987,-29989,-29990,-29990,-29991,-29991,-29992,-29994,-29995,-29995,-29996,-29996,-29997]} 1. e4 {[%emt 1:31:00]} e5 {[%emt 1:31:00]} 2. Nf3 {[%emt 0:00:30]} Nc6 {[%emt 0:00:30]} 3. Bc4 {[%emt 0:00:30]} Bc5 {[%emt 0:00:30]} 4. c3 {[%emt 0:00:30]} Nf6 {[%emt 0:00:30]} 5. d3 {[%emt 0:00:30]} O-O {[%emt 0:00:30]} 6. O-O {[%emt 0:00:30]} d5 {[%emt 0:00:30]} 7. exd5 {[%emt 0:00:30]} Nxd5 {[%emt 0:00:30]} 8. Re1 {[%emt 0:00:30]} Bg4 {[%emt 0:00:30]} 9. Nbd2 {[%emt 0:00:30]} Nb6 {[%emt 0:00:30]} 10. h3 {[%emt 0:00:30]} Bh5 {[%emt 0:00:30]} 11. Bb3 {[%emt 0:00:30] The position is equal.} Qxd3 {[%emt 0:00:30]} 12. Nxe5 {[%emt 0:00:30]} Qf5 {[%emt 0:00:30] Some like it hot} ({Much worse is} 12... Qg3 13. Qxh5 Qxf2+ (13... Bxf2+ $2 {is the wrong capture.} 14. Kh1 $18) 14. Kh2 Qxe1 15. Ndf3 $14 (15. Bxf7+ Rxf7 16. Qxf7+ Kh8 $19)) 13. Nef3 $1 {[%emt 0:00:30]} Rad8 {[%emt 0:00:30]} (13... Rae8 $5) 14. Qe2 {[%emt 0:00:30]} Nd5 {[%emt 0:00:30]} 15. Ne4 {[%emt 0:00:30]} Bxf3 {[%emt 0:00:30]} 16. Qxf3 {[%emt 0:00:30]} Qxf3 {[%emt 0:00:30]} 17. gxf3 {[%emt 0:00:30]} Bb6 {[%emt 0:00:30]} 18. Bg5 {[%emt 0:00:30]} Nde7 $1 {[%emt 0:00:30]} 19. a4 {[%emt 0:00:30]} a5 {[%emt 0:00:30]} 20. Kf1 {[%emt 0:00:30]} Rfe8 {[%emt 0:00:30]} (20... h6 $5 21. Be3 Ne5 $11) 21. Bxe7 {[%emt 0:00:30]} Rxe7 {[%emt 0:00:30]} 22. Rad1 {[%emt 0:00:30]} Rxd1 {[%emt 0:00:30]} 23. Rxd1 {[%emt 0:00:30]} Kf8 {[%emt 0:00:30]} 24. Rd5 {[%emt 0:00:30]} h6 {[%emt 0:00:30]} (24... Ne5 $5) 25. Nc5 {[%emt 0:00:30]} Bxc5 {[%emt 0:00:30]} 26. Rxc5 $11 {[%mdl 4096] Endgame. KRB-KRN} Re5 {[%emt 0:00:30]} 27. Rc4 {[%emt 0:01:00]} Rf5 {[%emt 0:00:30]} 28. f4 {[%emt 0:00:30]} Ke7 {[%emt 0:00:30]} 29. Bc2 {[%emt 0:00:30]} Rf6 {[%emt 0:00:30]} 30. Ke2 {[%emt 0:00:30]} Kd7 {[%emt 0:00:30]} 31. Be4 {[%emt 0:00:30]} Nd8 {[%emt 0:00:30]} 32. Ke3 {[%emt 0:00:30]} b6 {[%emt 0:00:30]} 33. b4 {[%emt 0:00:30]} c6 {[%emt 0:00:30]} 34. Rd4+ {[%emt 0:00:30]} Kc7 {[%emt 0:00:30]} 35. f5 {[%emt 0:00:30]} Nb7 {[%emt 0:00:30]} 36. Kf4 {[%emt 0:00:30]} Nd6 {[%emt 0:00:30]} 37. Ke5 {[%emt 0:00:30]} Nxe4 {[%emt 0:00:30]} 38. Rxe4 {[%emt 0:00:30] Black must now prevent Rg4. KR-KR} Rd6 {[%emt 0:00:30]} 39. Rd4 {[%emt 0:00:30] Wards off Rd5+} Rxd4 {[%emt 0:00:30]} 40. Kxd4 {[%emt 0:00:30] aiming for bxa5. KP-KP} Kd6 {[%emt 0:00:30]} 41. bxa5 {[%emt 0:30:30]} bxa5 {[%emt 0:30:30]} 42. Kc4 {[%emt 0:00:30]} g5 {[%emt 0:00:30] Strongly threatening ...Ke5.} 43. fxg6 {[%emt 0:00:30]} fxg6 {[%emt 0:00:30]} 44. h4 $2 {[%emt 0:00:30][%mdl 8192] White does not recover from this.} (44. f4 $11) 44... Ke5 $1 $19 {[%emt 0:00:30]} 45. Kc5 {[%emt 0:00:30] [#]} h5 $1 {[%emt 0:00:30][%cal Og6g5] ( -> ...g5!)} 46. f4+ {[%emt 0:00:30]} Kxf4 {[%emt 0:00:30] Black mates.} 47. Kxc6 {[%emt 0:00:30] [#]} g5 $1 {[%emt 0:00:30]} 48. hxg5 {[%emt 0:00:30]} Kxg5 {[%emt 0:00:30] KPP-KPP} 49. c4 {[%emt 0:00:30]} h4 {[%emt 0:00:30]} 50. c5 {[%emt 0:00:30]} h3 {[%emt 0:00:30]} 51. Kd7 {[%emt 0:00:30]} h2 {[%emt 0:00:30]} 52. c6 {[%emt 0:00:30]} h1=Q {[%emt 0:00:30]} ({Inferior is} 52... h1=R 53. c7 Rh7+ 54. Kc6 $11) 53. c7 {[%emt 0:00:30]} Qb7 {[%emt 0:00:30]} 54. Kd8 {[%emt 0:00:30]} Kf6 {[%emt 0:00:30]} 55. Kd7 {[%emt 0:00:30]} Ke5 {[%emt 0:00:30]} 56. Kd8 {[%emt 0:00:30]} Kd6 {[%emt 0:00:30] Weighted Error Value: White=0.26 (precise) /Black=0.03 (flawless) .  Loses game:     	White=1     	---        Inaccurate:     	White=2     	Black=2      OK:         	White=13    	Black=16     Best:        	---       	Black=1      Strong:       	White=1     	Black=2} 0-1

[Event "Ostravsky Konik FIDE-A 2024"]
[Site "Ostrava"]
[Date "2024.04.29"]
[Round "3.1"]
[White "Nemitz, Alfred"]
[Black "Decuigniere, Tom"]
[Result "0-1"]
[ECO "D00"]
[WhiteElo "2235"]
[BlackElo "2401"]
[Annotator "TA"]
[PlyCount "128"]
[EventDate "2024.04.26"]
[EventType "swiss"]
[EventCountry "CZE"]
[SourceTitle "playchess.com"]
[Source "ChessBase"]
[SourceQuality "1"]
[TimeControl "40/5400+30:1800+30"]

{[%evp 9,128,0,-7,-2,0,3,1,7,12,-26,-36,-41,-10,-60,-56,-83,-74,-66,-72,-75,-70,-69,-74,-61,-35,-39,-33,-119,-123,-125,-133,-127,-118,-122,-109,-125,-110,-119,-119,-200,-192,-219,-219,-210,-214,-350,-350,-339,-331,-339,-338,-331,-327,-344,-344,-344,-336,-336,-329,-344,-329,-329,-329,-322,0,-303,-288,-444,-436,-1058,-1058,-1050,-1050,-1043,-1043,-1036,-1014,-1029,-1036,-1036,-1029,-1033,-1029,-1021,-1014,-989,-949,-872,-856,-811,-567,-1150,-986,-29966,-29966,-29968,-29969,-29968,-29970,-29969,-29971,-29971,-29972,-29972,-29973,-29972,-29974,-29974,-29975,-29975,-29975,-29975,-29976,-29976,-29976,-29986,-29987,-29987,-29988,-29990,-29991]} 1. d4 {[%emt 0:00:03]} Nf6 {[%emt 0:00:07]} 2. Nc3 {[%emt 0:00:24]} d5 {[%emt 0:00:44]} 3. Bf4 {[%emt 0:04:33]} c5 {[%emt 0:00:23]} 4. e4 {[%emt 0:00:16]} Nxe4 {[%emt 0:02:28]} 5. Nxe4 {[%emt 0:00:07]} dxe4 {[%emt 0:00:05]} 6. dxc5 {[%emt 0:00:10]} Qxd1+ {[%emt 0:00:47]} 7. Rxd1 {[%emt 0:00:07]} Nc6 {[%emt 0:00:36]} 8. Be3 {[%emt 0:00:04] The position is equal.} e5 {[%emt 0:02:14]} 9. a3 {[%emt 0:03:07]} f5 {[%emt 0:04:48]} 10. g3 {[%emt 0:16:27]} Be6 {[%emt 0:05:42] Inhibits Bc4.} 11. Bb5 {[%emt 0:02:28]} ({White should play} 11. Bg2 $11) 11... Be7 $15 {[%emt 0:01:08]} 12. f3 {[%emt 0:03:23] [#]} f4 $1 {[%emt 0:10:35]} 13. gxf4 {[%emt 0:01:53]} exf4 {[%emt 0:00:40]} 14. Bxf4 {[%emt 0:10:36]} O-O {[%emt 0:00:42]} 15. Bxc6 {[%emt 0:04:06]} bxc6 {[%emt 0:00:57]} 16. Bd6 {[%emt 0:00:03]} Bxd6 {[%emt 0:06:17]} 17. Rxd6 {[%emt 0:13:43]} Bd5 $36 {[%emt 0:01:29][%mdl 2048] Hoping for ...Rab8. Black is pushing.} 18. c4 {[%emt 0:05:52] Black continues to play with concentration.} Bxc4 $17 {[%emt 0:00:28]} 19. Rd4 {[%emt 0:00:12] [#]} exf3 $1 {[%emt 0:22:16] ( -> ...f2+)} 20. Rxc4 {[%emt 0:08:03]} f2+ {[%emt 0:00:06]} 21. Kf1 {[%emt 0:00:03] [#] And now Nh3 would win.} Rad8 $1 {[%emt 0:00:10]} (21... fxg1=R+ 22. Kxg1 Rab8 23. Rc2 $15) 22. Rc1 {[%emt 0:00:56] Dodges Rd1+. Ne2 would now be deadly.} fxg1=Q+ {[%emt 0:00:08]} 23. Kxg1 {[%emt 0:00:11][%mdl 4096] Endgame. KRR-KRR} Rd2 {[%emt 0:00:25] Black is more active.} 24. h4 {[%emt 0:00:57]} (24. b4 $17) 24... Rxb2 $19 {[%emt 0:04:39]} 25. Rh3 {[%emt 0:03:06]} Rff2 {[%emt 0:02:07]} 26. Rd1 {[%emt 0:06:59]} h6 {[%emt 0:00:37]} 27. Re3 {[%emt 0:03:10]} (27. Rg3 $142) 27... Rg2+ {[%emt 0:01:47]} 28. Kf1 {[%emt 0:00:33]} Rh2 {[%emt 0:00:15]} 29. Kg1 {[%emt 0:01:13] Wards off Rh1+} Rxh4 {[%emt 0:00:41]} 30. Re6 {[%emt 0:00:20]} Rg4+ {[%emt 0:02:00]} 31. Kh1 {[%emt 0:00:37]} Rb3 {[%emt 0:01:17]} 32. Kh2 {[%emt 0:12:48] Prevents Rh3+} Rxa3 {[%emt 0:01:02]} 33. Rxc6 {[%emt 0:00:30]} Rc3 {[%emt 0:29:20]} 34. Rd7 {[%emt 0:00:30]} Rb4 {[%emt 0:00:30]} 35. Rd2 {[%emt 0:00:30] Repels Rb2} Rbc4 {[%emt 0:00:30]} 36. Rd7 {[%emt 0:00:30][%cal Oc6g6]} Rb4 {[%emt 0:00:00]} 37. Rd2 {[%emt 0:00:00] Prevents Rb2} Rb5 {[%emt 0:01:00]} 38. Rg2 {[%emt 0:01:00]} (38. Ra6 {was worth a try.}) 38... Rcxc5 {[%emt 0:00:00]} 39. Rxh6 {[%emt 0:00:30]} (39. Ra6 $142 Rh5+ 40. Kg3) 39... Rh5+ {[%emt 0:00:00]} 40. Rxh5 {[%emt 0:00:00]} Rxh5+ {[%emt 0:00:00] KR-KR} 41. Kg1 {[%emt 0:22:55]} a5 {[%emt 0:06:31] ...a4 is the strong threat.} 42. Rg6 {[%emt 0:00:01]} Rh6 {[%emt 0:00:07]} 43. Rg4 {[%emt 0:00:15]} Ra6 {[%emt 0:00:23]} 44. Ra4 {[%emt 0:00:01]} Kf7 {[%emt 0:00:08]} 45. Kf2 {[%emt 0:00:05]} Ke6 {[%emt 0:00:20]} 46. Ke3 {[%emt 0:00:14]} g5 {[%emt 0:00:48]} 47. Ke4 {[%emt 0:00:56]} Kf6 {[%emt 0:00:10]} 48. Ke3 {[%emt 0:00:16]} Kf5 {[%emt 0:00:06]} 49. Kf3 {[%emt 0:00:01]} Ra8 {[%emt 0:00:38]} 50. Kg3 {[%emt 0:00:11]} Ke5 {[%emt 0:01:57] Threatens to win with ...Kd6.} 51. Kg4 {[%emt 0:00:13]} Kd5 {[%emt 0:00:51] Black mates.} 52. Kxg5 {[%emt 0:00:02]} Kc5 {[%emt 0:00:05]} 53. Kf4 {[%emt 0:00:14]} Kb5 {[%emt 0:25:56]} 54. Ra1 {[%emt 0:12:06]} a4 {[%emt 0:00:30]} 55. Ke3 {[%emt 0:00:30]} a3 {[%emt 0:00:30]} 56. Kd2 {[%emt 0:00:00]} Ka4 {[%emt 0:00:00]} 57. Kc2 {[%emt 0:00:00]} Rc8+ {[%emt 0:00:00]} 58. Kd2 {[%emt 0:00:00]} Rh8 {[%emt 0:00:00]} 59. Kc3 {[%emt 0:00:00]} Rh3+ {[%emt 0:00:00]} 60. Kc4 {[%emt 0:00:00]} Rh2 {[%emt 0:00:00]} 61. Rd1 {[%emt 0:00:00]} a2 {[%emt 0:00:00]} 62. Rd8 {[%emt 0:00:00]} Rh4+ {[%emt 0:00:00]} (62... a1=B 63. Ra8#) 63. Kc5 {[%emt 0:00:00]} Rh5+ {[%emt 0:00:00]} ({Inferior is} 63... a1=B 64. Ra8+ Kb3 65. Rxa1 $11) 64. Kc4 {[%emt 0:00:00]} a1=Q {[%emt 0:04:30] Weighted Error Value: White=0.30/Black=0.14 (very precise) .  Mistake:       	White=6     	---        Inaccurate:     	White=3     	Black=2      OK:         	White=10    	Black=13     Best:        	White=3     	Black=4      Strong:       	---       	Black=2} ({Worse is} 64... a1=B 65. Ra8+ Ra5 66. Rxa5+ Kxa5 $11) 0-1

[Event "Ostravsky Konik FIDE-A 2024"]
[Site "Ostrava"]
[Date "2024.04.29"]
[Round "3.2"]
[White "Nguyen, Piotr"]
[Black "Xylogiannopoulos, Antonios"]
[Result "1-0"]
[ECO "D02"]
[WhiteElo "2398"]
[BlackElo "2247"]
[Annotator "TA"]
[PlyCount "75"]
[EventDate "2024.04.26"]
[EventType "swiss"]
[EventCountry "CZE"]
[SourceTitle "playchess.com"]
[Source "ChessBase"]
[SourceQuality "1"]
[TimeControl "40/5400+30:1800+30"]

{[%evp 9,75,6,16,4,13,8,0,0,21,0,11,0,24,-16,20,-3,23,19,55,55,42,54,60,33,79,83,69,104,93,87,92,66,69,71,168,84,83,98,172,182,186,125,131,121,162,150,210,237,280,280,286,286,393,402,437,434,443,441,667,366,440,433,567,554,629,614,571,571]} 1. Nf3 {[%emt 0:00:07]} d5 {[%emt 0:00:17]} 2. d4 {[%emt 0:00:13]} Nf6 {[%emt 0:01:30]} 3. g3 {[%emt 0:00:30]} Bf5 {[%emt 0:00:07]} 4. c4 {[%emt 0:00:50]} e6 {[%emt 0:00:33]} 5. Nc3 {[%emt 0:03:15]} c6 {[%emt 0:00:46]} 6. Qb3 {[%emt 0:04:02]} Qb6 {[%emt 0:00:10]} 7. c5 {[%emt 0:00:22]} Qxb3 {[%emt 0:00:08]} 8. axb3 {[%emt 0:00:04] The position is equal.} h6 {[%emt 0:00:23]} 9. h3 {[%emt 0:01:42]} Be7 {[%emt 0:00:36]} 10. g4 {[%emt 0:02:29]} Be4 {[%emt 0:03:05]} 11. Bf4 {[%emt 0:11:41]} O-O {[%emt 0:19:19]} 12. b4 {[%emt 0:04:08]} Na6 {[%emt 0:05:36]} 13. Ra4 {[%emt 0:01:19]} Bc2 {[%emt 0:06:36] [#]} 14. Rxa6 {[%emt 0:01:00]} bxa6 {[%emt 0:00:31]} 15. Ne5 {[%emt 0:05:14]} Ne4 {[%emt 0:14:18]} 16. Nxe4 {[%emt 0:08:15]} dxe4 {[%emt 0:03:19]} (16... Bxe4 $14 {should be considered.} 17. f3 Bc2 (17... Bh4+ $2 18. Kd2 $18)) 17. Nxc6 $16 {[%emt 0:02:21]} Bf6 {[%emt 0:00:03] Black is weak on the dark squares} 18. e3 {[%emt 0:11:25]} Ba4 {[%emt 0:06:48]} 19. Na5 {[%emt 0:04:16] White is more active.} e5 {[%emt 0:01:03]} 20. dxe5 {[%emt 0:04:10]} Bd8 {[%emt 0:03:14]} 21. e6 $36 {[%emt 0:08:24][%mdl 2048] Keeping Black busy.} Bxa5 {[%emt 0:13:07]} (21... fxe6 $16 22. b3 (22. Bxa6 Rxf4 23. exf4 Rb8 $14) 22... Bxa5 23. bxa5 Bxb3) 22. exf7+ {[%emt 0:02:07]} (22. bxa5 $18 {And now e7 would win.} fxe6 23. Bxa6) 22... Rxf7 {[%emt 0:00:09]} 23. bxa5 {[%emt 0:00:04]} Bb5 {[%emt 0:04:06]} (23... Rd8 $16 24. Bd6 Rb7 (24... Bb5 $2 25. Bxb5 axb5 26. Ke2 $18)) 24. Bxb5 $18 {[%emt 0:07:45]} axb5 {[%emt 0:00:01][%mdl 4096] Endgame. KRR-KRB} 25. c6 {[%emt 0:01:34]} ({Better is} 25. Ke2 $18) 25... Rc8 {[%emt 0:10:33]} 26. c7 {[%emt 0:00:05]} Rd7 {[%emt 0:00:06]} 27. Ke2 {[%emt 0:02:17]} Kf7 {[%emt 0:01:53]} (27... Rcxc7 $16 28. Bxc7 Rxc7) 28. Rc1 {[%emt 0:01:58]} Re7 {[%emt 0:00:03]} 29. Rc5 {[%emt 0:01:43]} a6 {[%emt 0:00:03]} 30. Kd2 {[%emt 0:07:06]} Re6 {[%emt 0:01:23]} 31. Kc3 {[%emt 0:00:10]} Ke7 {[%emt 0:00:22]} 32. Kd4 {[%emt 0:00:21]} Kd7 {[%emt 0:00:08]} 33. Be5 {[%emt 0:00:34]} Rc6 {[%emt 0:01:19]} (33... Rce8 $142 34. Kxe4 (34. Bxg7 Rd6+ 35. Kc3 Rd3+ 36. Kb4 Rd2 $18) 34... Kc8) 34. Rd5+ {[%emt 0:01:56]} (34. Bxg7 Rxc5 35. Kxc5 Rxc7+ 36. Kd5 Rc2 $11) 34... Ke6 {[%emt 0:00:01]} 35. b3 {[%emt 0:01:58] Inhibits Rc4+. White is clearly winning.} ({But not} 35. Kxe4 Ke7 36. f4 (36. Bxg7 R8xc7 37. Bd4 Re6+ 38. Kf5 Rec6 $18) 36... Rg8) 35... g6 {[%emt 0:03:24]} 36. Kxe4 {[%emt 0:01:43]} R8xc7 {[%emt 0:00:50]} 37. Bxc7 {[%emt 0:00:14]} Rxc7 {[%emt 0:00:02]} 38. f4 {[%emt 0:02:08] Weighted Error Value: White=0.24 (precise) /Black=0.47.  Mistake:       	White=2     	Black=5      Inaccurate:     	White=2     	Black=6      OK:         	White=16    	Black=8      Best:        	White=2     	Black=1      Brilliant:      	White=1     	---} 1-0

[Event "Ostravsky Konik FIDE-A 2024"]
[Site "Ostrava"]
[Date "2024.04.29"]
[Round "3.3"]
[White "Sernecki, Franciszek"]
[Black "Pourquet, Matthieu"]
[Result "1-0"]
[ECO "D32"]
[WhiteElo "2342"]
[BlackElo "2214"]
[Annotator "TA"]
[PlyCount "109"]
[EventDate "2024.04.26"]
[EventType "swiss"]
[EventCountry "CZE"]
[SourceTitle "playchess.com"]
[Source "ChessBase"]
[SourceQuality "1"]
[TimeControl "40/5400+30:1800+30"]

{[%evp 11,109,47,41,28,18,25,62,27,29,0,6,0,12,0,0,15,18,8,24,14,35,19,32,18,15,0,0,0,0,-47,4,8,10,-23,0,-14,17,38,20,7,22,12,123,115,129,110,284,269,324,363,358,212,231,233,266,262,259,246,294,289,323,326,322,316,323,307,348,264,258,253,327,327,302,314,291,274,406,485,459,414,6776,7031,5497,5635,6418,6191,29972,29973,29972,29973,29974,29975,29975,29976,29979,29977,29980,29981,29982,29983]} 1. d4 {[%emt 0:00:33]} d5 {[%emt 0:00:18]} 2. c4 {[%emt 0:00:14]} e6 {[%emt 0:00:05]} 3. Nf3 {[%emt 0:00:13]} c5 {[%emt 0:00:10]} 4. cxd5 {[%emt 0:03:06]} exd5 {[%emt 0:00:06]} 5. Bg5 {[%emt 0:01:15]} Nf6 {[%emt 0:00:24]} 6. Nc3 {[%emt 0:02:01]} Be6 {[%emt 0:01:57]} 7. dxc5 {[%emt 0:00:51]} Bxc5 {[%emt 0:00:27]} 8. e3 {[%emt 0:00:14]} h6 {[%emt 0:04:53]} 9. Bh4 {[%emt 0:03:41] White is slightly better.} O-O {[%emt 0:09:10]} 10. Be2 {[%emt 0:09:12]} Nc6 {[%emt 0:00:49]} 11. O-O {[%emt 0:00:44]} g5 {[%emt 0:05:01]} 12. Bg3 {[%emt 0:01:55]} Ne4 {[%emt 0:00:37]} 13. Qa4 {[%emt 0:11:53]} Nxg3 {[%emt 0:03:45]} 14. hxg3 {[%emt 0:00:25]} Qe7 {[%emt 0:00:32]} 15. Rfd1 {[%emt 0:07:46]} Rfd8 {[%emt 0:03:26]} 16. Bb5 {[%emt 0:06:27]} Rac8 {[%emt 0:01:52]} 17. Rac1 {[%emt 0:03:11]} Bb6 {[%emt 0:13:52]} 18. Bxc6 {[%emt 0:10:27]} bxc6 {[%emt 0:01:59]} 19. Nd4 {[%emt 0:05:14]} Bd7 {[%emt 0:14:39]} 20. Qc2 {[%emt 0:04:04]} (20. Rd2 $11) 20... Qf6 {[%emt 0:01:32]} (20... Bg4 $1 $15 21. Re1 Qf6) 21. b4 $11 {[%emt 0:01:39]} Bg4 {[%emt 0:01:17]} 22. Nde2 {[%emt 0:03:33]} Re8 {[%emt 0:03:27]} 23. Re1 {[%emt 0:06:43]} Bf5 {[%emt 0:17:41]} 24. Qd2 {[%emt 0:00:45]} Rcd8 {[%emt 0:05:41][%cal Bc8d8,Bd8d6,Bd6e6][%mdl 32]} 25. Nd4 {[%emt 0:03:08]} Rd6 {[%emt 0:02:59]} 26. b5 {[%emt 0:03:19]} c5 {[%emt 0:04:04]} (26... Bxd4 $11 {keeps the balance.} 27. exd4 Rxe1+ 28. Rxe1 Re6) 27. Nxf5 $16 {[%emt 0:00:43]} Qxf5 {[%emt 0:00:04]} 28. e4 $1 {[%emt 0:00:16]} Qg4 {[%emt 0:01:49] [#] This costs Black the game.} (28... Qg6 $16) 29. Nxd5 $18 {[%emt 0:01:20]} (29. exd5 Rdd8 $16) 29... Rde6 {[%emt 0:00:53]} 30. Qc3 {[%emt 0:02:38]} Bd8 {[%emt 0:00:48]} 31. Qf3 {[%emt 0:01:31]} (31. Qxc5 $142 Rxe4 32. Red1) 31... Qxf3 {[%emt 0:00:25]} 32. gxf3 {[%emt 0:00:01]} Bb6 {[%emt 0:01:02]} 33. g4 {[%emt 0:02:18]} Kg7 {[%emt 0:00:30]} 34. Ne3 {[%emt 0:00:33]} Kg6 {[%emt 0:00:37]} 35. Red1 {[%emt 0:01:12]} h5 {[%emt 0:00:19]} 36. gxh5+ {[%emt 0:01:49]} Kxh5 {[%emt 0:00:06]} 37. Kg2 {[%emt 0:00:58]} Kg6 {[%emt 0:01:44]} 38. Rd7 {[%emt 0:01:06]} Rh8 {[%emt 0:00:00]} 39. Rh1 {[%emt 0:01:35]} Rxh1 {[%emt 0:00:00]} 40. Kxh1 {[%emt 0:00:10][%mdl 4096] Endgame. KRB-KRN} c4 {[%emt 0:00:50]} 41. Nxc4 {[%emt 0:31:43]} Bxf2 {[%emt 0:30:32]} 42. Kg2 {[%emt 0:00:00]} Bc5 {[%emt 0:01:08]} 43. Kg3 {[%emt 0:00:00]} a6 {[%emt 0:00:00]} (43... Re8 $142 44. Kg4 Rh8) 44. a4 {[%emt 0:00:00][%cal Ba2a4,Ba4b5][%mdl 32]} axb5 {[%emt 0:00:00]} 45. axb5 {[%emt 0:00:00] [#] Hoping for Rc7.} Bg1 {[%emt 0:00:00]} (45... Kg7 $142 46. Kg4 (46. Rd5 Bg1 $18) 46... Kf8) 46. Rd6 {[%emt 0:00:00]} Rxd6 {[%emt 0:00:00]} 47. Nxd6 {[%emt 0:00:00] KB-KN} Bc5 {[%emt 0:00:00]} 48. Nc4 {[%emt 0:00:00] White wants to mate with b6.} f5 {[%emt 0:00:00]} 49. Ne5+ {[%emt 0:00:00] White mates.} Kg7 {[%emt 0:00:00]} 50. Nd7 {[%emt 0:00:00]} ({Stronger than} 50. exf5 Bd6 51. f4 gxf4+ 52. Kxf4 Kf6 $11) 50... Be3 {[%emt 0:00:00]} 51. exf5 {[%emt 0:00:00]} Kf7 {[%emt 0:00:00]} 52. Ne5+ {[%emt 0:00:00]} Ke7 {[%emt 0:00:00]} 53. Kg4 {[%emt 0:00:00]} Kd8 {[%emt 0:00:00]} 54. f6 {[%emt 0:00:00]} Ke8 {[%emt 0:00:00]} 55. Kf5 {[%emt 0:00:00] Weighted Error Value: White=0.15 (very precise) /Black=0.34.  Loses game:     	---       	Black=1      Mistake:       	White=2     	Black=4      Inaccurate:     	White=3     	Black=2      OK:         	White=15    	Black=16     Best:        	White=4     	---        Strong:       	White=1     	---} 1-0

[Event "Ostravsky Konik FIDE-A 2024"]
[Site "Ostrava"]
[Date "2024.04.29"]
[Round "3.4"]
[White "Bujnoch, Radek"]
[Black "Jafarli, Babak"]
[Result "1-0"]
[ECO "A79"]
[WhiteElo "2307"]
[BlackElo "2187"]
[Annotator "TA"]
[PlyCount "67"]
[EventDate "2024.04.26"]
[EventType "swiss"]
[EventCountry "CZE"]
[SourceTitle "playchess.com"]
[Source "ChessBase"]
[SourceQuality "1"]
[TimeControl "40/5400+30:1800+30"]

{[%evp 26,67,64,43,43,33,41,45,69,-79,102,80,79,87,92,91,91,84,102,89,140,139,127,156,120,110,140,117,191,182,186,175,240,152,460,467,540,520,559,562,547,548,2275,2141]} 1. d4 {[%emt 0:00:03]} Nf6 {[%emt 0:00:05]} 2. c4 {[%emt 0:00:05]} c5 {[%emt 0:00:06]} 3. d5 {[%emt 0:00:06]} e6 {[%emt 0:00:04]} 4. Nc3 {[%emt 0:00:08]} exd5 {[%emt 0:00:05]} 5. cxd5 {[%emt 0:00:06]} d6 {[%emt 0:00:04]} 6. Nf3 {[%emt 0:00:16]} g6 {[%emt 0:00:04]} 7. Nd2 {[%emt 0:00:13]} Bg7 {[%emt 0:00:35]} 8. e4 {[%emt 0:00:07]} O-O {[%emt 0:00:05]} 9. Be2 {[%emt 0:00:08]} Re8 {[%emt 0:02:40]} 10. O-O {[%emt 0:00:07]} Na6 {[%emt 0:02:03]} 11. f3 {[%emt 0:01:00]} Nc7 {[%emt 0:02:05]} 12. a4 {[%emt 0:00:06]} b6 {[%emt 0:00:48]} 13. Nc4 {[%emt 0:00:27]} Ba6 {[%emt 0:00:21]} 14. Rb1 {[%emt 0:00:10]} Bxc4 {[%emt 0:01:26]} 15. Bxc4 {[%emt 0:00:06]} a6 {[%emt 0:02:22]} 16. b4 {[%emt 0:00:15]} Nh5 {[%emt 0:00:46] White is slightly better.} 17. Bd2 {[%emt 0:10:05]} (17. bxc5 $14 {stays ahead.} bxc5 18. Ne2) 17... Qh4 $2 {[%emt 0:08:29]} (17... Bd4+ $1 $17 {keeps the pressure on.} 18. Kh1 Ng3+ 19. hxg3 Re5) 18. Qe1 {[%emt 0:02:19]} Qf6 {[%emt 0:03:34] Strongly threatening ...Qd4+.} 19. Kh1 {[%emt 0:03:45]} Rab8 {[%emt 0:06:08]} 20. bxc5 {[%emt 0:05:27]} bxc5 {[%emt 0:00:10]} 21. Ne2 {[%emt 0:02:07] Dodges Qd4} Qe7 {[%emt 0:00:28]} 22. Ba5 {[%emt 0:24:02]} f5 {[%emt 0:15:24]} (22... Qd7 $142) 23. Rxb8 $16 {[%emt 0:08:21]} Rxb8 {[%emt 0:02:10]} 24. exf5 {[%emt 0:00:31]} gxf5 {[%emt 0:04:03]} 25. Ng3 {[%emt 0:01:44]} Nxg3+ {[%emt 0:00:36]} 26. Qxg3 {[%emt 0:00:42]} Kh8 {[%emt 0:07:29] [#]} (26... Qd7 $16) 27. Re1 $1 $36 {[%emt 0:01:58][%mdl 2048] White is on the roll.} Qd7 {[%emt 0:01:20] [#]} 28. Qh4 $1 {[%emt 0:04:49] Black must now prevent h3.} Ne8 {[%emt 0:01:47]} (28... Qf7 $142 29. h3 (29. Re7 Rb1+ 30. Re1 Bf6 $16) 29... Bf6) 29. Bd3 {[%emt 0:16:05][%cal Oe1e7,Bc4d3,Bd3f5,Bf5c2][%mdl 32] Threatens to win with Re7!} Nf6 $2 {[%emt 0:06:09] This costs Black the game.} (29... Qf7 $16 {is more resistant.} 30. Re6 (30. Bxa6 Nf6 $16) 30... Be5) 30. Re6 {[%emt 0:07:51] White is clearly winning.} ({Less strong is} 30. Bxa6 Qa7 $16) 30... Re8 {[%emt 0:09:00]} 31. Bxf5 {[%emt 0:03:13]} Rxe6 {[%emt 0:00:29]} 32. dxe6 {[%emt 0:00:28]} Qb7 {[%emt 0:00:14]} 33. Bc3 {[%emt 0:02:56] This pair of bishops is nice.} Qd5 {[%emt 0:00:37]} 34. Bc2 {[%emt 0:03:37] Weighted Error Value: White=0.21 (precise) /Black=0.53.  Loses game:     	---       	Black=1      Mistake:       	White=1     	Black=4      Inaccurate:     	White=1     	Black=1      OK:         	White=6     	Black=2      Best:        	White=4     	---} 1-0